Cogmind - Beta 15 @@@ ROGUE MODE // 2025.07.28 @ 09:25:23 Player: Zoe Result: Destroyed by G-47 Trooper with Particle Gun Performance ------------- Evolutions (2) 1000 Regions Visited (3) 600 Robots Destroyed (35) 175 Value Destroyed (716) 716 Prototype IDs (1) 20 Alien Tech Used (0) 0 Bonus (0) 0 TOTAL SCORE: 2511 Bonus ------- None Cogmind --------- Core Integrity 0/550 Matter 300/300 Energy 40/100 System Corruption 2% Temperature Cool (87) Movement Core (1400) Ox27 Location -8/Materials Parts ------- > --- POWER (1) -------- (None) > --- PROPULSION (4) --- (None) > --- UTILITY (4) ------ Huge Storage Unit Improved Targeting Computer > --- WEAPON (2) ------- Pulse Rifle > --- INVENTORY (25) --- Huge Storage Unit Particle Gun Pulse Rifle EM Pulse Cannon Light Assault Rifle Peak State ------------ > --- POWER ------------ Ion Engine > --- PROPULSION ------- Light Treads Light Treads Light Treads > --- UTILITY ---------- Improved Heat Sink Huge Storage Unit Improved Targeting Computer > --- WEAPON ----------- Particle Gun Enhanced Autogun > --- INVENTORY -------- Light Ion Engine Light Ion Engine Aluminum Leg Aluminum Leg Improved Aluminum Leg Huge Storage Unit EM Pulse Gun Particle Gun Light Assault Rifle Light Cannon [Rating: 17] Favorites ----------- Power Light Ion Engine Engine Light Ion Engine Propulsion Light Treads Treads Light Treads Leg Aluminum Leg Utility Improved Heat Sink Device Improved Heat Sink Storage Huge Storage Unit Processor Improved Targeting Computer Weapon Particle Gun Energy Gun Particle Gun Ballistic Gun Light Assault Rifle Ballistic Cannon Light Cannon Build | -11 -10 -9 -8 ------- Run | Yrd Mat Mat Mat Slots Evolved 4 | . . 2 2 Power . | . . . . Propulsion 2 | . . 1 1 Utility 2 | . . 1 1 Weapon . | . . . . Parts Attached 30 | 7 9 9 5 Power 4 | 1 1 1 1 Engine 4 | 1 1 1 1 Core . | . . . . Reactor . | . . . . Propulsion 8 | 2 2 4 . Treads 3 | . . 3 . Leg 5 | 2 2 1 . Wheel . | . . . . Hover . | . . . . Flight . | . . . . Utility 7 | 2 2 2 1 Device 2 | 1 1 . . Storage 4 | 1 1 1 1 Processor 1 | . . 1 . Hackware . | . . . . Protection . | . . . . Artifact . | . . . . Weapon 11 | 2 4 2 3 Energy Gun 5 | . 1 2 2 Energy Cannon . | . . . . Ballistic Gun 5 | 2 2 . 1 Ballistic Cannon 1 | . 1 . . Launcher . | . . . . Special Weapon . | . . . . Impact Weapon . | . . . . Slashing Weapon . | . . . . Piercing Weapon . | . . . . Special Melee Weapon . | . . . . Unidentified Prototypes 1 | . . . 1 Parts Lost 13 | . 1 . 12 Power 2 | . . . 2 Propulsion 6 | . . . 6 Utility 2 | . 1 . 1 Weapon 3 | . . . 3 Highest Loss Streak 9 | . 1 . 9 To Critical Strikes . | . . . . Average Backups 5 | 2 4 7 5 Power . | . . . . Propulsion 2 | 1 2 2 1 Utility . | . . 1 1 Weapon 1 | . 1 2 2 Tool/Special . | . . . . Unused Backups 2 | . . . 2 Power . | . . . . Propulsion . | . . . . Utility . | . . . . Weapon 2 | . . . 2 Tool/Special . | . . . . Average Slot Usage (%) 85 | . 96 94 61 Engine 10 | . 13 11 7 Treads 11 | . . 23 10 Leg 13 | . 26 6 4 Device 9 | . 13 11 3 Storage 11 | . 14 11 9 Processor 5 | . . 8 9 Energy Gun 12 | . 3 19 12 Ballistic Gun 8 | . 22 . 2 Ballistic Cannon 1 | . 1 2 1 Peak Build Rating 17 | 9 9 15 17 Average Rating 10 | 5 8 13 11 On Entrance 8 | . 9 9 15 Naked Turns . | . . . . Heaviest Build 92 | 14 29 92 92 Greatest Support 60 | 20 20 60 60 Greatest Overweight (x) 28 | 3 2 2 28 Average Overweight (x) . | . . . 3 Largest Inventory Capacity 25 | 8 15 25 25 Average Capacity 18 | 7 8 22 25 Most Carried 10 | 5 8 9 10 Average Carried 5 | 2 4 7 5 Final Capacity 25 | 8 15 25 25 Final Carried 9 | 4 4 9 5 Class Distribution -------------------- 100% | Mutant Dominant Class ---------------- Mutant | -10/Materials Mutant | -9/Materials Mutant | -8/Materials Resources | -11 -10 -9 -8 ----------- Run | Yrd Mat Mat Mat Matter Collected 927 | 298 291 185 153 Remotely . | . . . . Salvage Created 1060 | 108 351 255 346 Parts 66 | 11 22 15 18 Haulers Intercepted 2 | . 1 1 . Recyclers Shooed . | . . . . Parts Field Recycled . | . . . . Retrieved Matter . | . . . . Parts Self-Destructed . | . . . . Prevented . | . . . . Kills | -11 -10 -9 -8 ------- Run | Yrd Mat Mat Mat Combat Hostiles Destroyed 25 | . 9 5 11 Guns 23 | . 9 5 9 AOE 2 | . . . 2 Classes Destroyed 11 | 2 5 1 3 Worker 1 | . . . 1 Builder 1 | . . 1 . Tunneler 2 | 2 . . . Hauler 2 | . 1 1 . Recycler 2 | 1 . 1 . Mechanic 1 | . 1 . . Watcher 1 | . 1 . . Swarmer 13 | . 5 3 5 Grunt 9 | . 4 2 3 Duelist 1 | . . . 1 Sentry 2 | . . . 2 Best Kill Streak 6 | 3 3 3 6 Combat Bots Only 6 | . 3 3 6 Max Kills in Single Turn 2 | 1 1 2 2 Gunslinging 1 | . . . 1 Exploded 2 | . . . 2 Melee . | . . . . Uniques/NPCs Destroyed . | . . . . Combat | -11 -10 -9 -8 -------- Run | Yrd Mat Mat Mat Hostile Shots Fired 218 | . 65 18 135 Missed 58 | . 21 6 31 Hits 160 | . 44 12 104 Melee 16 | . . . 16 Projectile 144 | . 44 12 88 Critical Strikes 9 | . . 1 8 Damage Taken 2286 | . 488 107 1691 Core 695 | . 95 49 551 Absorbed by Shields . | . . . . Core Remaining (%) 83 | 100 62 87 . Volleys Fired 119 | 7 58 13 41 Largest 2 | 2 2 2 2 Hottest 130 | 40 60 130 126 Shots Fired 226 | 14 116 26 70 Gun 215 | 14 116 26 59 Cannon 11 | . . . 11 Launcher . | . . . . Special . | . . . . Kinetic 146 | 14 112 . 20 Thermal 75 | . . 26 49 Explosive . | . . . . Electromagnetic 5 | . 4 . 1 Robot Hit Streak 11 | 5 7 5 11 Robot Miss Streak 6 | 1 6 4 5 Penetration Max . | . . . . Secondary Targets 3 | . 2 . 1 Max Gunslinging Chain 1 | . 1 . 1 Shots Hit Robots 135 | 9 68 12 46 Core Hits 56 | 5 21 8 22 Critical Kills 1 | . 1 . . Critical Parts Destroyed 2 | . 2 . . Critical Strikes 6 | . 3 2 1 Burn 3 | . . 2 1 Destroy 3 | . 3 . . Melee Attacks . | . . . . Impact . | . . . . Slashing . | . . . . Piercing . | . . . . Sneak Attacks . | . . . . Combat Hostiles . | . . . . Follow-up Attacks . | . . . . Damage Inflicted 1980 | 102 721 221 936 Guns 1655 | 102 720 200 633 Cannons 101 | . . . 101 Explosions 202 | . . . 202 Melee . | . . . . Ramming 22 | . 1 21 . Kinetic 928 | 102 680 . 146 Thermal 978 | . . 200 778 Explosive . | . . . . Electromagnetic 52 | . 40 . 12 Impact . | . . . . Slashing . | . . . . Piercing . | . . . . Highest Corruption 2 | . . . 2 Average Corruption 2 | . . . 2 Corruption Purged . | . . . . Corruption Blocked . | . . . . Effects 7 | . . . 7 Message Errors 2 | . . . 2 Matter Fused 2 | . . . 2 Energy Discharges 1 | . . . 1 Data Loss (minor) 2 | . . . 2 Overload Shots . | . . . . Overflow Damage 1 | . . . 1 Projectiles . | . . . . Explosions 1 | . . . 1 Melee . | . . . . Knockbacks 1 | . . 1 . Impact 1 | . . 1 . Kinetic . | . . . . Secondary . | . . . . Self-Inflicted Damage 35 | . . . 35 Shots 1 | . . . 1 Rammed 1 | . . 1 . Targets Rammed 3 | . 1 2 . Kicked 1 | . 1 . . Crushed 1 | . . 1 . Highest Temperature 380 | . 18 78 380 Average Temperature 41 | . 8 29 56 Received Heat Transfer 753 | . 213 18 522 Effects 1 | . . . 1 Shutdowns 1 | . . . 1 Siege Activations . | . . . . Martial Activations . | . . . . Shielding Activations . | . . . . Robots Disrupted . | . . . . Combat Hostiles . | . . . . Robots Corrupted . | . . . . Combat Hostiles . | . . . . Parts Fried . | . . . . Impact Corruptions . | . . . . Robots Melted . | . . . . Combat Hostiles . | . . . . Parts Melted 1 | . . . 1 Heat Transferred 2248 | . . 629 1619 Parts Sabotaged . | . . . . Parts Stolen . | . . . . Parts Stripped . | . . . . Power Chain Reactions 1 | . . . 1 Alert | -11 -10 -9 -8 ------- Run | Yrd Mat Mat Mat Maximum Alert Level . | . . . . Low Security (%) 100 | 100 100 100 100 Level 1 . | . . . . Level 2 . | . . . . Level 3 . | . . . . Level 4 . | . . . . Level 5 . | . . . . High Security . | . . . . Max Security . | . . . . Peak Influence 117 | 10 117 70 70 Initial 22 | . . 9 22 Average 28 | 1 60 7 23 Influence Increases 705 | 15 254 138 298 Destroy 0b10 Robot/C 500 | . 180 100 220 Destroy 0b10 Robot/NC 50 | 15 15 15 5 Destroy Leader 126 | . 44 22 60 Successful Hack 7 | . . . 7 Disable Machine 15 | . 15 . . Destroy Structure 7 | . . 1 6 Influence Decreases 657 | 15 230 108 304 Entered New Map 47 | . . 15 32 Time Decay 505 | 15 220 93 177 Lost Part 105 | . 10 . 95 Squads Dispatched 2 | . 1 1 . Investigation . | . . . . Extermination . | . . . . Reinforcement 2 | . 1 1 . Assault . | . . . . Garrison . | . . . . Intercept . | . . . . Searches Triggered . | . . . . Construction Impeded . | . . . . Haulers Reinforced . | . . . . Active Scanning Responses . | . . . . Cargo Convoy Interrupts . | . . . . Stealth | -11 -10 -9 -8 --------- Run | Yrd Mat Mat Mat Distress Signals 6 | . 2 . 4 Communications Jammed . | . . . . Distress Signals . | . . . . Times Spotted 45 | . 15 8 22 Peak Tracking Total 7 | . 3 3 7 Tactical Retreats . | . . . . Traps | -11 -10 -9 -8 ------- Run | Yrd Mat Mat Mat Traps Triggered 3 | . 2 . 1 Indirectly . | . . . . Trap Hack Attempts . | . . . . Triggered . | . . . . Disarmed . | . . . . Reprogrammed . | . . . . Reused . | . . . . Traps Extracted . | . . . . Installed . | . . . . Triggered . | . . . . Machines | -11 -10 -9 -8 ---------- Run | Yrd Mat Mat Mat Machines Disabled 1 | . 1 . . Max in Single Turn 1 | . 1 . . Machines Repaired . | . . . . Machines Dismantled . | . . . . Machines Sabotaged . | . . . . Overloaded Fab Kills . | . . . . Hacking | -11 -10 -9 -8 --------- Run | Yrd Mat Mat Mat Machines Accessed 2 | . 1 . 1 Terminals 2 | . 1 . 1 Fabricators . | . . . . Repair Stations . | . . . . Recycling Units . | . . . . Scanalyzers . | . . . . Garrison Access . | . . . . Total Hacks 4 | . 2 . 2 Successful 2 | . 1 . 1 Failed 2 | . 1 . 1 Catastrophic . | . . . . Database Lockouts . | . . . . Manual . | . . . . Terminals 4 | . 2 . 2 Fabricators . | . . . . Repair Stations . | . . . . Recycling Units . | . . . . Scanalyzers . | . . . . Garrison Access . | . . . . Terminal Hacks 2 | . 1 . 1 Robot Analysis 1 | . . . 1 Zone Layout 1 | . 1 . . Fabricator Hacks . | . . . . Repair Station Hacks . | . . . . Recycling Unit Hacks . | . . . . Scanalyzer . | . . . . Garrison Access Hacks . | . . . . Unauthorized Hacks . | . . . . Terminals . | . . . . Fabricators . | . . . . Repair Stations . | . . . . Recycling Units . | . . . . Scanalyzers . | . . . . Garrison Access . | . . . . Data Cores Recovered . | . . . . Used . | . . . . Hacking Detections . | . . . . Full Trace Events . | . . . . Feedback Events . | . . . . Feedback Blocked . | . . . . Robot Schematics Acquired . | . . . . Robots Built . | . . . . Authchips . | . . . . Time . | . . . . Total Robot Build Rating . | . . . . Part Schematics Acquired . | . . . . Parts Built . | . . . . Authchips . | . . . . Time . | . . . . Total Part Build Rating . | . . . . Parts Repaired . | . . . . Time . | . . . . Parts Recycled . | . . . . Recycled Matter . | . . . . Retrieved Matter . | . . . . Retrieved Components . | . . . . Parts Scanalyzed . | . . . . Part Schematics Acquired . | . . . . Parts Damaged . | . . . . Bothacking | -11 -10 -9 -8 ------------ Run | Yrd Mat Mat Mat Used RIF Installer . | . . . . Robots Hacked . | . . . . Non-combat . | . . . . Combat . | . . . . Robot Hacks Applied . | . . . . Relay Couplers Released . | . . . . Fabnet Peak Effective % . | . . . . Robots Rewired . | . . . . Allies Hacked . | . . . . Hacks Repelled . | . . . . Allies | -11 -10 -9 -8 -------- Run | Yrd Mat Mat Mat Total Allies . | . . . . Largest Group . | . . . . Highest-Rated Group . | . . . . Highest-Rated Ally . | . . . . Total Orders . | . . . . Ally Attacks . | . . . . Total Damage . | . . . . Kills . | . . . . Allies Corrupted . | . . . . Allies Melted . | . . . . Intel | -11 -10 -9 -8 ------- Run | Yrd Mat Mat Mat Active Infowar (turns) 385 | 15 370 . . Terrain 385 | 15 370 . . Robot Analysis Total 1 | . . . 1 Derelict Logs Recovered . | . . . . Drone Launches . | . . . . Drone Recoveries . | . . . . Exploration | -11 -10 -9 -8 ------------- Run | Yrd Mat Mat Mat Turns Passed 1800 | 93 582 630 495 Spaces Moved 661 | 51 299 211 100 Core 19 | 13 5 . 1 Treads 235 | . . 173 62 Legs 407 | 38 294 38 37 Wheels . | . . . . Hover . | . . . . Flight . | . . . . Fastest Speed 50 | 50 100 160 240 Average Speed 188 | 110 127 210 362 Slowest Speed 1450 | 200 260 320 1450 Overloaded Moves . | . . . . Propulsion Burnouts . | . . . . Robots Hopped . | . . . . Potential Cave-ins . | . . . . Cave-ins Triggered . | . . . . Exploration Rate (%) 19 | 3 43 20 13 Regions Visited 3 Branch Regions . Pre-discovered Areas . | . . . . Known Exits Taken . | . . . . Unknown Exits Taken 3 | 1 1 1 . Scrap Searched . | . . . . Spaces Dug . | . . . . Terrain Destroyed 4 | . . . 4 Melee . | . . . . Projectile . | . . . . AOE 4 | . . . 4 Terrain Rammed . | . . . . Walls Destroyed . | . . . . Machines Disabled . | . . . . Actions | -11 -10 -9 -8 --------- Run | Yrd Mat Mat Mat Total 1001 | 75 395 367 164 Wait 120 | . 6 114 . Move 658 | 50 298 210 100 Hop . | . . . . Pick Up 39 | 11 12 10 6 Fast Attach . | . . . . Attach 28 | 7 6 4 11 Detach 3 | . . 2 1 Swap 20 | . 8 9 3 Drop 11 | . 6 3 2 Fire 119 | 7 58 13 41 Melee . | . . . . Ram . | . . . . Kick 1 | . 1 . . Crush 2 | . . 2 . Escape Stasis . | . . . . Rewire . | . . . . Trap . | . . . . Miscellaneous . | . . . . Route ------- -11/Scrapyard -10/Materials -9/Materials -8/Materials History --------- Turn | Location | Event 24 | -11/Scrapyard | Discovered new exit (range 16) 94 | -11/Scrapyard | Entered Materials 309 | -10/Materials | Build established: Mutant 550 | -10/Materials | Discovered new exit (range 16) 676 | -10/Materials | Entered another Materials area 676 | -9/Materials | Evolved 2 slots: Propulsion x1, Utility x1 1284 | -9/Materials | Discovered new exit (range 9) 1306 | -9/Materials | Entered another Materials area 1306 | -8/Materials | Evolved 2 slots: Propulsion x1, Utility x1 1549 | -8/Materials | Lost 9 parts (1p5n1u2w) 1588 | -8/Materials | Core integrity fell below 50% 1768 | -8/Materials | Core integrity fell below 20% 1801 | -8/Materials | Destroyed by G-47 Trooper with Particle Gun Last Messages --------------- W-25 Informer sends out distress signal. Critical hit (Burn: +37). Imp. Aluminum Leg destroyed. G-50 Soldier destroyed. K-01 Serf collects debris. K-01 Serf destroyed. Acquired 13 matter. Acquired 26 matter. U-05 Engineer builds a Door. R-06 Scavenger collects Carbon-fiber Leg. K-01 Serf collects debris. R-06 Scavenger collects Lgt. Ion Engine. K-01 Serf collects debris. Pulse Rifle destroyed. Y-45 Defender suffers critical hit (Burn). Imp. Ion Engine melted. Y-45 Defender destroyed. R-06 Scavenger collects Heat Sink. System corrupted: Matter fused (-9). Acquired 9 matter. Map ----- +----------------------------------------------------+ | ??????????????????????????????????????# #??????? | | ??????????????????????????????????????# #??????? | | ??????????????????????????????????????# #??????? | | ??????????????????????????????????????# #??????? | | ??????????????????????????????????????# ######## | | ??????????????????????????????????????# # | | ??????????????????????????????????????# # " | | ??????????????????????????????????????# # " | | ??????????????????????????????????????# # | | ??????????????????????????????????????# # | | ??????????????????????????????????????# + """ | | ??????????????????????????????????????# # """ | | ??????????????????????????????????????# # """ | | ?????????????????????????###+###?????## ######## | | ?????????????????????????# ####### #?????? | | ?????????????????????????# #?????? | | ?????????????????????????# T #?????? | | ?????????????????????????# " ####### | | ?????????????????????????? ! """ ## | | ????????????############### "" #### ######### | | ????????????# # """ #??# #???????? | | ????????????# # "" #??# #???????? | | ????????????# # """ #??# #???????? | | ????????????# # """ ####+######??? | | ????????????# a !# % """ # #??? | | ????????????# r@#% " /# """ """ #??? | | ??????????###############g#% # """ """ #??? | | ????????? %% % # """ """ #??? | | ????????? g + #??? | | ?????????? "" w % # ! #??? | | ????????????? T" ######/##"T"#### # [ #??? | | ?????????????? "" ??# #####??# # #??? | | ??????????????? ???# #??????# ###########??? | | ?????????????? ?????# #??????# #????????????? | | ????????????? ??????# //k #??????# #????????????? | | ????????????????????# / k #??????# #????????????? | | ????????????????????# / %#??????# #????????????? | | ????????????????????# #??????# ????????????? | | ????????????????????# #??????? ????????????? | | ????????????????????# +??????? ????????????? | | ????????????????????# # ?????? ????????????? | | ????????????????????# ###????? ????????????? | | ????????????????????# #???????# ????????????? | | ????????????????????########???????? ????????????? | | ???????????????????????????????????? ????????????? | | ?????????????????????????????????????????????????? | | ?????????????????????????????????????????????????? | | ?????????????????????????????????????????????????? | | ?????????????????????????????????????????????????? | | ?????????????????????????????????????????????????? | +----------------------------------------------------+ Best States ------------- Heat Dissipation 45 Energy Generation 10 Energy Capacity 250 Matter Stores 300 Matter Capacity 300 Sight Range 16 Terrain Scan Range 16 Terrain Scan Density 10 Evasion (%) 55 Targeting Accuracy 6 Recoil Reduction 3 Item Schematics ----------------- None Robot Schematics ------------------ None Fabricated ------------ Nothing Repaired ---------- Nothing Alien Tech Used ----------------- None Achievements -------------- None Challenges ------------ None Game ------ Seed AssembledLightDetonator Manual? 0 Play Time 00:19:39 Cumulative 10.5 hours Start 2025.07.28 @ 08:51:07 End 2025.07.28 @ 09:25:23 Sessions 1 Manual Loads 0 Difficulty Rogue Special Mode None Game No. 21 Rogue 18 Adventurer 3 Explorer 0 Win Type - Total 0 Types 0/0/0/0/0/0/0/0/0/0 Lore% 9 Gallery% 13 Achievement% 15 Wizard Run 0 Options --------- Layout 1 ASCII 0 Keyboard 0 Movement Mouse Keybinds 0 Fullscreen 1 Font 24/Smallcaps Map View 50x35 Zoom Use 0% Tactical HUD 0 Map Filters NONE Filters NONE Steam 1 RUN: 3644a712-0797-48ae-9706-eff197f85f0b